fUSD/lending_fUSD_20240317
["ID","MTS","AMOUNT","RATE_DAILY","PERIOD"]
[319288285,1710639055851,-6421.8,0.00015399,2]
[319288286,1710639055862,-1110.78,0.00015399,2]
[319288287,1710639055872,-6421.8,0.00015399,2]
[319288288,1710639055882,-6421.8,0.00015399,2]
[319288289,1710639055892,-6421.8,0.00015399,2]
[319288290,1710639055902,-6421.8,0.00015399,2]
[319288291,1710639055912,-151.0,0.00015399,2]
[319288292,1710639055922,-500.0,0.00015399,2]
[319288293,1710639055931,-500.0,0.00015399,2]
[319288294,1710639055943,-1122.48,0.00015399,2]
[319288295,1710639055952,-500.0,0.00015399,2]
[319288296,1710639055961,-1122.48,0.00015399,2]
[319288297,1710639055970,-1122.48,0.00015399,2]
[319288298,1710639055980,-500.0,0.00015399,2]
[319288299,1710639055989,-1122.48,0.00015399,2]
[319288300,1710639056000,-1122.48,0.00015399,2]
[319288301,1710639056010,-500.0,0.00015399,2]
[319288302,1710639056019,-1122.48,0.00015399,2]
[319288303,1710639056028,-151.0,0.00015399,2]
[319288304,1710639056036,-500.0,0.00015399,2]
[319288305,1710639056046,-500.0,0.00015399,2]
[319288306,1710639056056,-500.0,0.00015399,2]
[319288307,1710639056067,-500.0,0.00015399,2]
[319288308,1710639056077,-500.0,0.00015399,2]
[319288309,1710639056087,-1578.8,0.00015399,2]
[319288310,1710639056097,-1578.8,0.00015399,2]
[319288311,1710639056108,-626.66,0.00015399,2]
[319288312,1710639056119,-1578.8,0.00015399,2]
[319288313,1710639056129,-626.66,0.00015399,2]
[319288314,1710639056139,-626.66,0.00015399,2]
[319288315,1710639056148,-1578.8,0.00015399,2]
[319288316,1710639056159,-626.66,0.00015399,2]
[319288317,1710639056171,-1578.8,0.00015399,2]
[319288318,1710639056182,-1578.8,0.00015399,2]
[319288319,1710639056193,-626.66,0.00015399,2]
[319288320,1710639056203,-626.66,0.00015399,2]
[319288321,1710639056212,-626.66,0.00015399,2]
[319288322,1710639056222,-626.66,0.00015399,2]
[319288323,1710639056231,-626.66,0.00015399,2]
[319288324,1710639056241,-626.76861079,0.00015399,2]
[319288325,1710639056250,-151.0,0.00015399,2]
[319288326,1710639056259,-689.73,0.00015399,2]
[319288327,1710639056270,-689.73,0.00015399,2]
[319288328,1710639056279,-689.73,0.00015399,2]
[319288329,1710639056288,-689.73,0.00015399,2]
[319288330,1710639056299,-689.73,0.00015399,2]
[319288331,1710639056310,-689.73,0.00015399,2]
[319288332,1710639056320,-689.73,0.00015399,2]
[319288333,1710639056330,-689.73,0.00015399,2]
[319288334,1710639056339,-689.73,0.00015399,2]
[319288335,1710639056348,-689.84114853,0.00015399,2]
[319288336,1710639056358,-2190.27,0.00015399,2]
[319288337,1710639056368,-2190.27,0.00015399,2]
[319288338,1710639056382,-2190.27,0.00015399,2]
[319288339,1710639056394,-2190.27,0.00015399,2]
[319288340,1710639056404,-2190.27,0.00015399,2]
[319288341,1710639056415,-2190.27,0.00015399,2]
[319288342,1710639056424,-2190.27,0.00015399,2]
[319288343,1710639056434,-14528.56521284,0.000154,2]
[319288344,1710639056446,-425.00769775,0.000154,2]
[319288345,1710639056455,-160.0,0.000154,2]
[319288346,1710639056466,-15500.37332697,0.000154,2]
[319288347,1710639056476,-568307.62151646,0.000154,5]
[319288348,1710639056822,-499.95,0.000143,2]
[319288349,1710639056838,-886.0,0.000143,2]
[319288350,1710639056855,-2982.52005518,0.000143,2]
[319288351,1710639056870,-2004.41155943,0.000143,2]
[319288352,1710639056888,-1410.2626,0.000143,2]
[319288353,1710639056903,-580.7768,0.000143,2]
[319288354,1710639056918,-833.79793316,0.000143,2]
[319288355,1710639056932,-4233.57815125,0.000143,2]
[319288356,1710639056947,-97575.9809576,0.000143,2]
[319288357,1710639056960,-2190.27,0.00015399,2]
[319288358,1710639056971,-470489.7489185,0.000154,5]
[319288359,1710639056983,-4805.62437309,0.000154,2]
[319288360,1710639056995,-302.75,0.000154,2]
[319288361,1710639057007,-162001.0,0.000154,2]
[319288362,1710639057021,-151.0,0.000154,2]
[319288363,1710639057031,-151.0,0.000154,2]
[319288364,1710639057041,-213.900141,0.000154,2]
[319288365,1710639057051,-4272.56141472,0.000154,2]
[319288366,1710639057063,-151.0,0.000154,2]
[319288367,1710639057075,-246.10597,0.000154,2]
[319288368,1710639057085,-151.0,0.000154,2]
[319288369,1710639057095,-19911.66277149,0.000154,2]
[319288370,1710639057119,-8303.34998947,0.000154,2]
[319288371,1710639057148,-500.0,0.00015342,2]
[319288372,1710639057159,-1658.3613014,0.000154,2]
[319288373,1710639057647,-17417.76206813,0.00013671,2]
[319288374,1710639057660,-5411.91793187,0.00013671,2]
[319288375,1710639057670,-1239.0744,0.00014399,2]
[319288376,1710639057680,-1080.8769,0.00014693,2]
[319288377,1710639057694,-150.0,0.00015164,2]
[319288378,1710639057703,-150.0,0.00015309,2]
[319288379,1710639057714,-70.24969451,0.00015342,2]
[319288380,1710639057726,-362.662217,0.00015342,2]
[319288381,1710639057739,-82.10174653,0.00015342,2]
[319288382,1710639057750,-529.4195359,0.00015342,2]
[319288383,1710639057760,-1227.26605,0.00015342,2]
[319288384,1710639057770,-233.33126162,0.00015396,2]
[319288385,1710639057783,-266.66873838,0.00015396,2]
[319288386,1710639057794,-491.98549991,0.00015398,2]
[319288387,1710639057806,-1234.40964402,0.00015399,2]
[319288388,1710639057825,-955.86035598,0.00015399,2]
[319288389,1710639057837,-2190.50039995,0.00015399,2]
[319288390,1710639057848,-495.21463083,0.00015399,2]
[319288391,1710639057875,-732.05141917,0.00015399,2]
[319288392,1710639057886,-6304.73159241,0.000154,2]
[319288393,1710639057912,-251.23146462,0.00015342,2]
[319288394,1710639057923,-40127.38951203,0.000154,2]
[319288395,1710639057933,-151.0,0.000154,2]
[319288396,1710639057945,-151.0,0.000154,2]
[319288397,1710639057955,-301.361527,0.000154,2]
[319288398,1710639057966,-3198.60200935,0.000154,2]
[319288399,1710639057977,-151.0,0.000154,2]
[319288400,1710639057988,-151.0,0.000154,2]
[319288401,1710639057998,-151.0,0.000154,2]
[319288402,1710639058009,-151.0,0.000154,2]
[319288403,1710639058019,-262.727298,0.000154,2]
[319288404,1710639058029,-170.859538,0.000154,2]
[319288405,1710639058039,-14484.1901611,0.000154,2]
[319288406,1710639058048,-170.859538,0.000154,2]
[319288407,1710639058058,-170.859538,0.000154,2]
[319288408,1710639058068,-170.859538,0.000154,2]
[319288409,1710639058078,-3229.8536913,0.000154,2]
[319288410,1710639058088,-265260.4066219,0.000154,2]
[319288411,1710639058098,-151.0,0.000154,2]
[319288412,1710639058108,-151.0,0.000154,2]
[319288413,1710639058118,-151.0,0.000154,2]
[319288414,1710639058127,-151.0,0.000154,2]
[319288415,1710639058137,-952.51492241,0.000154,2]
[319288416,1710639058146,-151.0,0.000154,2]
[319288417,1710639058156,-205.412496,0.000154,2]
[319288418,1710639058166,-27425.3428458,0.000154,2]
[319288419,1710639058176,-1183.80827641,0.000154,2]
[319288420,1710639058188,-151.0,0.000154,2]
[319288421,1710639058198,-151.0,0.000154,2]
[319288422,1710639058208,-151.0,0.000154,2]
[319288423,1710639058217,-178.229819,0.000154,2]
[319288424,1710639058227,-151.0,0.000154,2]
[319288425,1710639058237,-151.0,0.000154,2]
[319288426,1710639058247,-934.31576026,0.000154,2]
[319288427,1710639058258,-1227.26605,0.000154,2]
[319288428,1710639058268,-1227.26605,0.000154,2]
[319288429,1710639058278,-637.4,0.0001541,2]
[319288430,1710639058288,-637.4,0.0001541,2]
[319288431,1710639058298,-637.4,0.0001541,2]
[319288432,1710639058308,-637.4,0.0001541,2]
[319288433,1710639058318,-637.42,0.0001541,2]
[319288434,1710639058328,-633.53,0.0001541,2]
[319288435,1710639058338,-633.53,0.0001541,2]
[319288436,1710639058348,-633.53,0.0001541,2]
[319288437,1710639058358,-633.53,0.0001541,2]
[319288438,1710639058367,-633.68,0.0001541,2]
[319288439,1710639058381,-2274.11,0.0001541,2]
[319288440,1710639058390,-2274.11,0.0001541,2]
[319288441,1710639058400,-2274.11,0.0001541,2]
[319288442,1710639058409,-2274.11,0.0001541,2]
[319288443,1710639058419,-2274.1740232,0.0001541,2]
[319288444,1710639058429,-500.0,0.0001541,2]
[319288445,1710639058440,-267.46,0.0001541,2]
[319288446,1710639058449,-781.53,0.0001541,2]
[319288447,1710639058459,-781.53,0.0001541,2]
[319288448,1710639058470,-781.53,0.0001541,2]
[319288449,1710639058480,-781.53,0.0001541,2]
[319288450,1710639058489,-781.65834597,0.0001541,2]
[319288451,1710639058499,-6421.8,0.0001541,2]
[319288452,1710639058508,-6421.8,0.0001541,2]
[319288453,1710639058519,-6421.8,0.0001541,2]
[319288454,1710639058528,-6421.8,0.0001541,2]
[319288455,1710639058538,-6421.84,0.0001541,2]
[319288456,1710639058547,-1122.48,0.0001541,2]
[319288457,1710639058558,-1122.48,0.0001541,2]
[319288458,1710639058568,-1122.48,0.0001541,2]
[319288459,1710639058578,-1122.48,0.0001541,2]
[319288460,1710639058588,-1122.56,0.0001541,2]
[319288461,1710639058598,-1578.8,0.0001541,2]
[319288462,1710639058608,-1578.8,0.0001541,2]
[319288463,1710639058619,-1578.8,0.0001541,2]
[319288464,1710639058628,-1578.8,0.0001541,2]
[319288465,1710639058638,-1578.95137654,0.0001541,2]
[319288466,1710639058648,-151.0,0.00015411,2]
[319288467,1710639058658,-151.0,0.00015411,2]
[319288468,1710639058668,-500.0,0.0001542,2]
[319288469,1710639058678,-500.0,0.0001542,2]
[319288470,1710639058693,-571.34,0.0001542,2]
[319288471,1710639058702,-500.0,0.0001542,2]
[319288472,1710639058711,-735.84,0.0001542,2]
[319288473,1710639058721,-500.0,0.0001542,2]
[319288474,1710639058731,-568.94,0.0001542,2]
[319288475,1710639058740,-1145.99,0.0001542,2]
[319288476,1710639058750,-810.37,0.0001542,2]
[319288477,1710639058760,-593.23,0.0001542,2]
[319288478,1710639058770,-851.94,0.0001542,2]
[319288479,1710639058781,-861.99,0.0001542,2]
[319288480,1710639058792,-573.87,0.0001542,2]
[319288481,1710639058801,-288.99,0.0001542,2]
[319288482,1710639058811,-754.37,0.0001542,2]
[319288483,1710639058821,-1056.71,0.0001542,2]
[319288484,1710639058830,-649.33,0.0001542,2]
[319288485,1710639058840,-883.53,0.0001542,2]
[319288486,1710639058849,-611.99,0.0001542,2]
[319288487,1710639058859,-500.0,0.0001542,2]
[319288488,1710639058868,-889.07,0.0001542,2]
[319288489,1710639058878,-695.52,0.0001542,2]
[319288490,1710639058887,-500.0,0.0001542,2]
[319288491,1710639058896,-2311.66,0.0001542,2]
[319288492,1710639058906,-1006.11,0.0001542,2]
[319288493,1710639058915,-1038.67,0.0001542,2]
[319288494,1710639058924,-1219.37,0.0001542,2]
[319288495,1710639058934,-578.45,0.0001542,2]
[319288496,1710639058945,-1110.78,0.0001542,2]
[319288497,1710639058957,-500.0,0.0001542,2]
[319288498,1710639058968,-169.03508,0.00015431,2]
[319288499,1710639058978,-459.102932,0.00015431,2]
[319288500,1710639058989,-173.029314,0.00015431,2]
[319288501,1710639059000,-790.861547,0.00015431,2]
[319288502,1710639059010,-2183.113539,0.00015431,2]
[319288503,1710639059021,-1600.672,0.00015433,2]
[319288504,1710639059031,-357.0,0.00015433,2]
[319288505,1710639059042,-2560.0,0.00015433,2]
[319288506,1710639059052,-1378.0,0.00015433,2]
[319288507,1710639059063,-959.0,0.00015433,2]
[319288508,1710639059073,-539.896,0.00015433,2]
[319288509,1710639059083,-457.0,0.00015433,2]
[319288510,1710639059093,-1227.0,0.00015433,2]
[319288511,1710639059103,-150.0,0.00015444,2]
[319288512,1710639059114,-150.0,0.00015444,2]
[319288513,1710639059125,-150.694,0.00015444,2]
[319288514,1710639059136,-151.0,0.00015444,2]
[319288515,1710639059146,-150.0,0.00015444,2]
[319288516,1710639059156,-155.52266548,0.00015446,2]
[319288517,1710639059165,-216.346,0.00015448,2]
[319288518,1710639059175,-150.926,0.00015448,2]
[319288519,1710639059184,-154.38,0.00015448,2]
[319288520,1710639059196,-1000.0,0.0001547,2]
[319288521,1710639059206,-1114.7724189,0.0001547,2]
[319288522,1710639059218,-1000.0,0.0001547,2]
[319288523,1710639059228,-500.397264,0.0001547,2]
[319288524,1710639059442,-1000.0,0.0001547,2]
[319288525,1710639059458,-500.0,0.0001547,2]
[319288526,1710639059469,-1317.20647541,0.00015478,2]
[319288527,1710639059480,-2161.58757289,0.00015478,2]
[319288528,1710639059490,-392.89262183,0.00015478,2]
[319288529,1710639059500,-1550.7010182,0.00015478,2]
[319288530,1710639059510,-500.0,0.00015478,2]
[319288531,1710639059521,-498.02,0.00015478,2]
[319288532,1710639059531,-500.0,0.00015478,2]
[319288533,1710639059541,-500.0,0.00015478,2]
[319288534,1710639059552,-500.0,0.00015478,2]
[319288535,1710639059562,-163.32,0.00015478,2]
[319288536,1710639059572,-571.34,0.00015478,2]
[319288537,1710639059583,-571.34,0.00015478,2]
[319288538,1710639059593,-571.34,0.00015478,2]
[319288539,1710639059603,-571.34,0.00015478,2]
[319288540,1710639059613,-571.49,0.00015478,2]
[319288541,1710639059623,-500.0,0.00015478,2]
[319288542,1710639059633,-848.75,0.00015478,2]
[319288543,1710639059643,-500.0,0.00015478,2]
[319288544,1710639059653,-500.0,0.00015478,2]
[319288545,1710639059663,-500.0,0.00015478,2]
[319288546,1710639059673,-500.0,0.00015478,2]
[319288547,1710639059682,-500.0,0.00015478,2]
[319288548,1710639059695,-328.07107408,0.00015478,2]
[319288549,1710639059705,-735.84,0.00015478,2]
[319288550,1710639059715,-735.84,0.00015478,2]
[319288551,1710639059726,-735.84,0.00015478,2]
[319288552,1710639059736,-735.84,0.00015478,2]
[319288553,1710639059746,-735.95852867,0.00015478,2]
[319288554,1710639059755,-515.74,0.00015478,2]
[319288555,1710639059765,-568.94,0.00015478,2]
[319288556,1710639059775,-568.94,0.00015478,2]
[319288557,1710639059785,-568.94,0.00015478,2]
[319288558,1710639059795,-568.94,0.00015478,2]
[319288559,1710639059805,-569.0850296,0.00015478,2]
[319288560,1710639059815,-1145.99,0.00015478,2]
[319288561,1710639059825,-1145.99,0.00015478,2]
[319288562,1710639059835,-1145.99,0.00015478,2]
[319288563,1710639059845,-1145.99,0.00015478,2]
[319288564,1710639059854,-1146.06731861,0.00015478,2]
[319288565,1710639059867,-810.37,0.00015478,2]
[319288566,1710639059878,-810.37,0.00015478,2]
[319288567,1710639059889,-810.37,0.00015478,2]
[319288568,1710639059900,-810.37,0.00015478,2]
[319288569,1710639059910,-810.41,0.00015478,2]
[319288570,1710639059921,-593.23,0.00015478,2]
[319288571,1710639059930,-593.23,0.00015478,2]
[319288572,1710639059942,-593.23,0.00015478,2]
[319288573,1710639059952,-593.23,0.00015478,2]
[319288574,1710639059961,-593.27,0.00015478,2]
[319288575,1710639059971,-851.94,0.00015478,2]
[319288576,1710639059982,-851.94,0.00015478,2]
[319288577,1710639059991,-851.94,0.00015478,2]
[319288578,1710639060002,-851.94,0.00015478,2]
[319288579,1710639060012,-852.01417053,0.00015478,2]
[319288580,1710639060022,-861.99,0.00015478,2]
[319288581,1710639060033,-861.99,0.00015478,2]
[319288582,1710639060042,-861.99,0.00015478,2]
[319288583,1710639060053,-861.99,0.00015478,2]
[319288584,1710639060064,-862.18,0.00015478,2]
[319288585,1710639060073,-573.87,0.00015478,2]
[319288586,1710639060083,-573.87,0.00015478,2]
[319288587,1710639060093,-573.87,0.00015478,2]
[319288588,1710639060104,-573.87,0.00015478,2]
[319288589,1710639060114,-573.96977877,0.00015478,2]
[319288590,1710639060124,-754.37,0.00015478,2]
[319288591,1710639060136,-754.37,0.00015478,2]
[319288592,1710639060149,-754.37,0.00015478,2]
[319288593,1710639060160,-754.37,0.00015478,2]
[319288594,1710639060169,-754.52,0.00015478,2]
[319288595,1710639060179,-1056.71,0.00015478,2]
[319288596,1710639060193,-1056.71,0.00015478,2]
[319288597,1710639060204,-1056.71,0.00015478,2]
[319288598,1710639060215,-1056.71,0.00015478,2]
[319288599,1710639060226,-1056.77894052,0.00015478,2]
[319288600,1710639060235,-649.33,0.00015478,2]
[319288601,1710639060245,-649.33,0.00015478,2]
[319288602,1710639060254,-649.33,0.00015478,2]
[319288603,1710639060264,-649.33,0.00015478,2]
[319288604,1710639060273,-649.42076539,0.00015478,2]
[319288605,1710639060283,-883.53,0.00015478,2]
[319288606,1710639060293,-883.53,0.00015478,2]
[319288607,1710639060303,-883.53,0.00015478,2]
[319288608,1710639060312,-883.53,0.00015478,2]
[319288609,1710639060322,-883.6819271,0.00015478,2]
[319288610,1710639060332,-611.99,0.00015478,2]
[319288611,1710639060341,-611.99,0.00015478,2]
[319288612,1710639060351,-611.99,0.00015478,2]
[319288613,1710639060360,-611.99,0.00015478,2]
[319288614,1710639060371,-612.0,0.00015478,2]
[319288615,1710639060382,-500.0,0.00015478,2]
[319288616,1710639060391,-500.0,0.00015478,2]
[319288617,1710639060400,-500.0,0.00015478,2]
[319288618,1710639060410,-889.07,0.00015478,2]
[319288619,1710639060421,-500.0,0.00015478,2]
[319288620,1710639060430,-224.67,0.00015478,2]
[319288621,1710639060443,-889.07,0.00015478,2]
[319288622,1710639060455,-889.07,0.00015478,2]
[319288623,1710639060465,-889.07,0.00015478,2]
[319288624,1710639060475,-889.17,0.00015478,2]
[319288625,1710639060486,-695.52,0.00015478,2]
[319288626,1710639060496,-695.52,0.00015478,2]
[319288627,1710639060506,-695.52,0.00015478,2]
[319288628,1710639060516,-695.52,0.00015478,2]
[319288629,1710639060526,-695.66835219,0.00015478,2]
[319288630,1710639060536,-500.0,0.00015478,2]
[319288631,1710639060546,-500.0,0.00015478,2]
[319288632,1710639060555,-500.0,0.00015478,2]
[319288633,1710639060566,-486.8296944,0.00015478,2]
[319288634,1710639060576,-2311.66,0.00015478,2]
[319288635,1710639060586,-2311.66,0.00015478,2]
[319288636,1710639060596,-2311.66,0.00015478,2]
[319288637,1710639060606,-2311.66,0.00015478,2]
[319288638,1710639060616,-2311.69092538,0.00015478,2]
[319288639,1710639060625,-1006.11,0.00015478,2]
[319288640,1710639060635,-1006.11,0.00015478,2]
[319288641,1710639060645,-1006.11,0.00015478,2]
[319288642,1710639060656,-1006.11,0.00015478,2]
[319288643,1710639060667,-1006.17,0.00015478,2]
[319288644,1710639060678,-1038.67,0.00015478,2]
[319288645,1710639060692,-1038.67,0.00015478,2]
[319288646,1710639060701,-1038.67,0.00015478,2]
[319288647,1710639060711,-1038.67,0.00015478,2]
[319288648,1710639060721,-1038.83899328,0.00015478,2]
[319288649,1710639060731,-1219.37,0.00015478,2]
[319288650,1710639060741,-1219.37,0.00015478,2]
[319288651,1710639060751,-1219.37,0.00015478,2]
[319288652,1710639060761,-1219.37,0.00015478,2]
[319288653,1710639060771,-1219.46100064,0.00015478,2]
[319288654,1710639060781,-1110.78,0.00015478,2]
[319288655,1710639060792,-1110.78,0.00015478,2]
[319288656,1710639060804,-1110.78,0.00015478,2]
[319288657,1710639060813,-1110.78,0.00015478,2]
[319288658,1710639060824,-1110.79211971,0.00015478,2]
[319288659,1710639060834,-352.56,0.00015478,2]
[319288660,1710639060843,-300.0,0.00015479,2]
[319288661,1710639060853,-16240.51959199,0.00015479,2]
[319288662,1710639060863,-151.0,0.00015479,2]
[319288663,1710639060872,-263.31,0.00015479,2]
[319288664,1710639060882,-848.75,0.00015479,2]
[319288665,1710639060891,-848.75,0.00015479,2]
[319288666,1710639060901,-848.75,0.00015479,2]
[319288667,1710639060910,-848.75,0.00015479,2]
[319288668,1710639060920,-848.8,0.00015479,2]
[319288669,1710639060930,-500.0,0.00015479,2]
[319288670,1710639060943,-500.0,0.00015479,2]
[319288671,1710639060952,-193.47565718,0.00015479,2]
[319288672,1710639060962,-135663.28592877,0.0001548,2]
[319288673,1710639061162,-205.25044702,0.00015341,2]
[319288674,1710639061171,-176.62924923,0.00015341,2]
[319288675,1710639061183,-282.35350463,0.00015341,2]
[319288676,1710639061430,-4543.54955,0.00015341,2]
[319288677,1710639061444,-500.0,0.00015342,2]
[319288678,1710639061454,-500.0,0.00015342,2]
[319288679,1710639061464,-500.0,0.00015342,2]
[319288680,1710639061474,-500.0,0.00015342,2]
[319288681,1710639061484,-500.0,0.00015342,2]
[319288682,1710639061493,-1227.26605,0.00015342,2]
[319288683,1710639061504,-500.0,0.00015342,2]
[319288684,1710639061513,-213.04112142,0.00015342,2]
[319288685,1710639061522,-500.0,0.00015342,2]
[319288686,1710639061532,-481.53672092,0.00015342,2]
[319288687,1710639061542,-757.0,0.00015342,2]
[319288688,1710639061552,-577.31735392,0.00015398,2]
[319288689,1710639061562,-778.64663463,0.00015399,2]
[319288690,1710639061574,-448.61941537,0.00015399,2]
[319288691,1710639061583,-1227.26605,0.000154,2]
[319288692,1710639061593,-1227.26605,0.000154,2]
[319288693,1710639061602,-605.209,0.00015433,2]
[319288694,1710639061612,-1071.98104108,0.00015433,2]
[319288695,1710639061630,-197.04395892,0.00015433,2]
[319288696,1710639061639,-2637.06117598,0.0001548,2]
[319288697,1710639061653,-10971.87821385,0.0001548,2]
[319288698,1710639061710,-258.9630651,0.00015398,2]
[319288699,1710639061721,-5631.97106722,0.0001548,2]
[319288700,1710639062111,-168.0,0.00014547,2]
[319288701,1710639062121,-152.622238,0.00014697,2]
[319288702,1710639062130,-214.12142,0.00014697,2]
[319288703,1710639062139,-152.622238,0.00014942,2]
[319288704,1710639062149,-152.622238,0.00015187,2]
[319288705,1710639062159,-314.1537073,0.000153,2]
[319288706,1710639062168,-1029.63976993,0.00015342,2]
[319288707,1710639062178,-503.58353922,0.00015342,2]
[319288708,1710639062192,-155.17754481,0.00015398,2]
[319288709,1710639062201,-433.488,0.00015417,2]
[319288710,1710639062211,-431.92610493,0.0001548,2]
[319288711,1710639062223,-3612.41813377,0.0001548,2]
[319288712,1710639062234,-9872.15,0.0001548,2]
[319288713,1710639249916,4188.349,0.000193,30]
[319288714,1710639492666,620.97,0.00011625,2]
[319288715,1710639500986,-535.24316092,0.00012389,2]
[319288716,1710639501009,-4680.95920173,0.0001239,2]
[319288717,1710639728755,40280.0,0.000216,60]
[319288718,1710640133766,589.92,0.00011325,2]
[319288731,1710640231868,-5216.20236265,0.00011994,2]
[319288732,1710640231877,-1052.89324976,0.00011995,2]
[319288733,1710640231887,-1405.0,0.00012,2]
[319288734,1710640231896,-2054.67362009,0.00012388,2]
[319288735,1710640231905,-150.0,0.00012999,2]
[319288736,1710640231915,-800.0,0.00013,3]
[319288737,1710640231925,-800.0,0.00013,3]
[319288738,1710640231934,-1203.42,0.00013158,2]
[319288739,1710640231943,-1084.62,0.00013218,2]
[319288740,1710640231953,-150.0,0.00013452,2]
[319288741,1710640231962,-250.0,0.00013468,2]
[319288742,1710640231971,-384.0,0.00013491,2]
[319288743,1710640231980,-177.85,0.00013514,2]
[319288744,1710640231989,-616.0,0.00013565,2]
[319288745,1710640231999,-589.92,0.00013589,2]
[319288746,1710640232008,-250.0,0.00013699,2]
[319288747,1710640232018,-170.04,0.00013699,2]
[319288748,1710640232027,-331277.0,0.00013754,2]
[319288749,1710640232036,-16376.0741,0.00013793,2]
[319288750,1710640232045,-333.42,0.00013797,2]
[319288751,1710640232054,-2507.14328856,0.00014269,2]
[319288752,1710640232063,-1330.17739867,0.00014345,2]
[319288753,1710640232072,-403.2358,0.00014399,2]
[319288754,1710640232082,-717.4605,0.00014399,2]
[319288755,1710640232091,-112265.6833,0.000144,2]
[319288756,1710640232100,-2919.49,0.00014422,2]
[319288757,1710640232109,-2919.49,0.00014475,2]
[319288758,1710640232119,-250.0,0.0001448,2]
[319288759,1710640232130,-150.69265578,0.0001448,2]
[319288760,1710640232141,-178.27,0.0001448,2]
[319288761,1710640232152,-151.22851605,0.0001448,2]
[319288762,1710640232163,-260.49,0.0001448,2]
[319288763,1710640232174,-406.10697296,0.0001452,2]
[319288764,1710640232183,-1330.17739867,0.00014521,2]
[319288765,1710640232192,-2919.49,0.00014528,2]
[319288766,1710640232202,-450.58735181,0.00014549,2]
[319288767,1710640232211,-168.0,0.00014575,2]
[319288768,1710640232220,-2919.49,0.00014581,2]
[319288769,1710640232229,-168.0,0.00014602,2]
[319288770,1710640232238,-260.49,0.00014617,2]
[319288771,1710640232247,-168.0,0.0001463,2]
[319288772,1710640232258,-2919.49,0.00014635,2]
[319288773,1710640232266,-2919.49,0.00014688,2]
[319288774,1710640232275,-1000.0,0.00014693,2]
[319288776,1710640232284,-168.7243,0.00014694,2]
[319288778,1710640232294,-1330.17739867,0.00014697,2]
[319288780,1710640232303,-307.247864,0.00014697,2]
[319288781,1710640232312,-168.698381,0.00014697,2]
[319288782,1710640232321,-165.290633,0.00014697,2]
[319288783,1710640232330,-205.892382,0.00014697,2]
[319288784,1710640232339,-188.697345,0.00014697,2]
[319288785,1710640232348,-174.259234,0.00014697,2]
[319288786,1710640232358,-2919.49,0.00014741,2]
[319288787,1710640232366,-250.0,0.00014754,2]
[319288788,1710640232376,-262.1975637,0.00014754,2]
[319288789,1710640232385,-2919.49,0.00014794,2]
[319288790,1710640232394,-2919.49,0.00014847,2]
[319288791,1710640232404,-1330.17739867,0.00014872,2]
[319288792,1710640232413,-214.12142,0.0001488,2]
[319288793,1710640232423,-307.247864,0.0001488,2]
[319288794,1710640232432,-205.892382,0.0001488,2]
[319288795,1710640232443,-278.68319377,0.00014895,2]
[319288796,1710640232452,-2919.49,0.000149,2]
[319288797,1710640232462,-245000.0,0.00014905,2]
[319288798,1710640232471,-233.6627897,0.00014907,2]
[319288799,1710640232480,-182.46560573,0.00014907,2]